Cogmind - Beta 13 @@@ ROGUE MODE // 2024.07.10 @ 22:23:56 Player: Sionnis Result: Destroyed by G-50 Soldier with Heavy Laser Performance ------------- Evolutions (1) 500 Regions Visited (5) 1000 Robots Destroyed (69) 345 Value Destroyed (1649) 1649 Prototype IDs (3) 60 Alien Tech Used (0) 0 Bonus (347) 347 TOTAL SCORE: 3901 Bonus ------- Pacifist 200 High Alert Combat Kills 105 Follower Combat Kills 91 Aligned with FarCom 300 Friendly Fire -349 Cogmind --------- Core Integrity 0/400 Matter 290/300 Energy 85/100 System Corruption 1% Temperature Cool (18) Movement Walking (90) Location -8/Mines Parts ------- > --- POWER (1) -------- (None) > --- PROPULSION (3) --- Potential Leg Potential Leg Armored Wheel > --- UTILITY (2) ------ Large Storage Unit Medium Armor Plating > --- WEAPON (3) ------- Flail Flail Flail > --- INVENTORY (15) --- Light Nuclear Core Armored Wheel Armored Wheel High-capacity Matter Pod (200) Improved Melee Analysis Suite Improved EM Pulse Cannon EMP Blaster Mace Mace Flail Flail Flail Peak State ------------ > --- POWER ------------ Improved Ion Engine > --- PROPULSION ------- Potential Leg Potential Leg Armored Wheel > --- UTILITY ---------- Large Storage Unit Improved Medium Armor Plating > --- WEAPON ----------- Flail Flail Flail > --- INVENTORY -------- Light Nuclear Core Light Treads Armored Wheel Armored Wheel High-capacity Matter Pod Improved Melee Analysis Suite Medium Armor Plating Medium Armor Plating Improved EM Pulse Cannon EMP Blaster Mace Mace Flail Flail Flail [Rating: 38] Favorites ----------- Power Improved Ion Engine Engine Improved Ion Engine Propulsion Armored Wheel Treads Light Treads Leg Potential Leg Wheel Armored Wheel Hover Unit Aerolev Unit Utility Large Storage Unit Storage Large Storage Unit Processor Targeting Computer Protection Medium Armor Plating Weapon Flail Ballistic Gun Autogun Launcher EMP Blaster Impact Weapon Flail Build | -11 -10 -9 -9 -9 -8 ------- Run | Yrd Mat Mat Min Exi Min Slots Evolved 2 | . . 2 . . . Power . | . . . . . . Propulsion 1 | . . 1 . . . Utility . | . . . . . . Weapon 1 | . . 1 . . . Parts Attached 59 | 3 4 34 8 3 7 Power 6 | 1 . 5 . . . Engine 6 | 1 . 5 . . . Core . | . . . . . . Reactor . | . . . . . . Propulsion 20 | 2 . 14 . 3 1 Treads 6 | . . 5 . 1 . Leg 2 | . . . . 2 . Wheel 11 | 2 . 8 . . 1 Hover 1 | . . 1 . . . Flight . | . . . . . . Utility 8 | . 2 3 1 . 2 Device . | . . . . . . Storage 1 | . 1 . . . . Processor 1 | . 1 . . . . Hackware . | . . . . . . Protection 6 | . . 3 1 . 2 Artifact . | . . . . . . Weapon 25 | . 2 12 7 . 4 Energy Gun . | . . . . . . Energy Cannon . | . . . . . . Ballistic Gun 2 | . 2 . . . . Ballistic Cannon . | . . . . . . Launcher 8 | . . 3 3 . 2 Special Weapon . | . . . . . . Impact Weapon 15 | . . 9 4 . 2 Slashing Weapon . | . . . . . . Piercing Weapon . | . . . . . . Special Melee Weapon . | . . . . . . Unidentified Prototypes 3 | . . 2 . 1 . Parts Lost 4 | . . . . . 4 Power 1 | . . . . . 1 Propulsion 1 | . . . . . 1 Utility 2 | . . . . . 2 Weapon . | . . . . . . Highest Loss Streak 2 | . . . . . 2 To Critical Strikes . | . . . . . . Average Slot Usage (%) 98 | . 75 98 100 100 99 Engine 11 | . 14 10 11 11 10 Treads 9 | . . 10 11 11 2 Leg 2 | . . . . 10 22 Wheel 20 | . 28 21 22 11 8 Storage 10 | . 4 11 11 11 11 Processor 2 | . 12 3 . . . Protection 8 | . . 7 11 11 11 Impact Weapon 30 | . . 32 31 33 31 Naked Turns . | . . . . . . Heaviest Build 42 | 3 29 42 42 40 42 Greatest Support 60 | 20 20 24 24 60 60 Greatest Overweight (x) 3 | . 1 3 1 1 . Average Overweight (x) . | . . 1 1 . . Largest Inventory Capacity 15 | 5 15 15 15 15 15 Average Capacity 14 | 5 7 15 15 15 15 Most Carried 15 | 3 5 15 15 15 15 Average Carried 13 | 1 4 13 14 15 13 Final Capacity 15 | 5 15 15 15 15 15 Final Carried 15 | 3 5 15 15 15 12 Class Distribution -------------------- 91% | Mutant 8% | Commander-Mutant Dominant Class ---------------- Mutant | -10/Materials Mutant | -9/Materials Commander-Mutant | -9/Mines Mutant | -9/Exiles Mutant | -8/Mines Resources | -11 -10 -9 -9 -9 -8 ----------- Run | Yrd Mat Mat Min Exi Min Matter Collected 1075 | 179 . 665 134 . 97 Remotely . | . . . . . . Salvage Created 2260 | . . 1708 146 . 406 Parts 101 | . . 69 15 . 17 Haulers Intercepted 4 | . . 4 . . . Recyclers Shooed . | . . . . . . Parts Field Recycled . | . . . . . . Retrieved Matter . | . . . . . . Parts Self-Destructed . | . . . . . . Prevented . | . . . . . . Kills | -11 -10 -9 -9 -9 -8 ------- Run | Yrd Mat Mat Min Exi Min Combat Hostiles Destroyed 54 | . . 34 9 . 11 Melee 21 | . . 17 . . 4 AOE 22 | . . 9 9 . 4 Classes Destroyed 12 | . . 10 . . 2 Worker 1 | . . 1 . . . Tunneler 1 | . . 1 . . . Hauler 4 | . . 4 . . . Recycler 3 | . . 3 . . . Operator 2 | . . 2 . . . Watcher 4 | . . 4 . . . Swarmer 22 | . . 9 9 . 4 Grunt 22 | . . 17 . . 5 Brawler 1 | . . . . . 1 Duelist 1 | . . 1 . . . Sentry 7 | . . 7 . . . Hunter 1 | . . . . . 1 Best Kill Streak 7 | . . 7 4 . 7 Combat Bots Only 7 | . . 5 4 . 7 Max Kills in Single Turn 3 | . . 3 3 . 2 Gunslinging . | . . . . . . Exploded 3 | . . 2 3 . 2 Melee 1 | . . 1 . . 1 Uniques/NPCs Destroyed . | . . . . . . Combat | -11 -10 -9 -9 -9 -8 -------- Run | Yrd Mat Mat Min Exi Min Hostile Shots Fired 255 | . . 140 19 7 89 Missed 62 | . . 36 5 1 20 Damage Taken 2864 | . . 1312 183 139 1230 Core 414 | . . 237 19 50 108 Absorbed by Shields . | . . . . . . Regen/Repaired (Parts) 219 | . . 219 . . . Core Remaining (%) 100 | 100 100 . . . . Volleys Fired 26 | . . 11 11 . 4 Largest 1 | . . 1 1 . 1 Hottest 33 | . . 33 33 . 33 Shots Fired 26 | . . 11 11 . 4 Gun . | . . . . . . Cannon . | . . . . . . Launcher 26 | . . 11 11 . 4 Special . | . . . . . . Kinetic . | . . . . . . Thermal . | . . . . . . Explosive . | . . . . . . Electromagnetic 26 | . . 11 11 . 4 Robot Hit Streak 2 | . . 1 1 . 2 Robot Miss Streak 1 | . . 1 . . . Penetration Max . | . . . . . . Secondary Targets . | . . . . . . Shots Hit Robots 122 | . . 90 6 1 25 Core Hits 50 | . . 29 11 . 10 Critical Kills 7 | . . 4 . . 3 Critical Parts Destroyed 18 | . . 14 1 . 3 Critical Strikes 26 | . . 18 1 . 7 Smash 26 | . . 18 1 . 7 Melee Attacks 180 | . . 134 7 2 37 Impact 180 | . . 134 7 2 37 Slashing . | . . . . . . Piercing . | . . . . . . Sneak Attacks 14 | . . 12 . 1 1 Combat Hostiles 1 | . . . . . 1 Follow-up Attacks 35 | . . 28 2 . 5 Damage Inflicted 5358 | . . 3771 527 104 956 Guns . | . . . . . . Cannons . | . . . . . . Explosions 1014 | . . 519 389 . 106 Melee 4344 | . . 3252 138 104 850 Ramming . | . . . . . . Kinetic . | . . . . . . Thermal 257 | . . 119 122 . 16 Explosive . | . . . . . . Electromagnetic 757 | . . 400 267 . 90 Impact 4344 | . . 3252 138 104 850 Slashing . | . . . . . . Piercing . | . . . . . . Highest Corruption 1 | . . . . . 1 Average Corruption 1 | . . . . . 1 Corruption Purged . | . . . . . . Corruption Blocked . | . . . . . . Overload Shots . | . . . . . . Overflow Damage 1078 | . . 814 43 103 118 Projectiles . | . . . . . . Explosions 23 | . . 20 . . 3 Melee 1055 | . . 794 43 103 115 Knockbacks 15 | . . 10 . 1 4 Impact 14 | . . 9 . 1 4 Kinetic . | . . . . . . Secondary 1 | . . 1 . . . Self-Inflicted Damage 141 | . . 23 25 . 93 Shots 10 | . . 3 4 . 3 Rammed . | . . . . . . Targets Rammed . | . . . . . . Kicked . | . . . . . . Crushed . | . . . . . . Highest Temperature 337 | . . 337 . . 37 Average Temperature 121 | . . 149 . . 17 Received Heat Transfer 912 | . . 525 . . 387 Siege Activations . | . . . . . . Robots Corrupted . | . . . . . . Combat Hostiles . | . . . . . . Parts Fried 29 | . . 27 . . 2 Impact Corruptions 45 | . . 34 2 3 6 Robots Melted . | . . . . . . Combat Hostiles . | . . . . . . Parts Melted 1 | . . . 1 . . Heat Transferred 350 | . . 150 200 . . Parts Sabotaged . | . . . . . . Parts Stolen . | . . . . . . Parts Stripped . | . . . . . . Power Chain Reactions 9 | . . 4 3 . 2 Alert | -11 -10 -9 -9 -9 -8 ------- Run | Yrd Mat Mat Min Exi Min Peak Influence 575 | . 36 575 482 . 248 Initial 195 | . . 14 195 . . Average 346 | . 21 387 374 . 190 Maximum Alert Level 2 | . . 2 2 . 1 Low Security (%) 15 | 100 100 10 5 . 23 Level 1 47 | . . 38 85 . 76 Level 2 37 | . . 51 8 . . Level 3 . | . . . . . . Level 4 . | . . . . . . Level 5 . | . . . . . . High Security . | . . . . . . Max Security . | . . . . . . Squads Dispatched 5 | . . 4 1 . . Investigation 2 | . . 1 1 . . Extermination . | . . . . . . Reinforcement 3 | . . 3 . . . Assault . | . . . . . . Garrison . | . . . . . . Intercept . | . . . . . . Searches Triggered . | . . . . . . Construction Impeded . | . . . . . . Haulers Reinforced . | . . . . . . Active Scanning Responses . | . . . . . . Cargo Convoy Interrupts . | . . . . . . Stealth | -11 -10 -9 -9 -9 -8 --------- Run | Yrd Mat Mat Min Exi Min Distress Signals . | . . . . . . Communications Jammed . | . . . . . . Distress Signals . | . . . . . . Times Spotted 77 | . 3 46 12 1 15 Peak Tracking Total 5 | . 2 4 4 5 5 Tactical Retreats 3 | . . 2 . . 1 Traps | -11 -10 -9 -9 -9 -8 ------- Run | Yrd Mat Mat Min Exi Min Traps Triggered 1 | . . 1 . . . Indirectly . | . . . . . . Trap Hack Attempts . | . . . . . . Triggered . | . . . . . . Disarmed . | . . . . . . Reprogrammed . | . . . . . . Reused . | . . . . . . Traps Extracted . | . . . . . . Installed . | . . . . . . Triggered . | . . . . . . Machines | -11 -10 -9 -9 -9 -8 ---------- Run | Yrd Mat Mat Min Exi Min Machines Disabled 2 | . . 1 1 . . Max in Single Turn 1 | . . 1 1 . . Machines Repaired . | . . . . . . Machines Dismantled . | . . . . . . Machines Sabotaged . | . . . . . . Overloaded Fab Kills . | . . . . . . Hacking | -11 -10 -9 -9 -9 -8 --------- Run | Yrd Mat Mat Min Exi Min Machines Accessed 12 | . 1 9 2 . . Terminals 7 | . 1 6 . . . Fabricators . | . . . . . . Repair Stations 2 | . . 2 . . . Recycling Units 1 | . . 1 . . . Scanalyzers . | . . . . . . Garrison Access . | . . . . . . Total Hacks 35 | . 5 28 2 . . Successful 20 | . 2 16 2 . . Failed 15 | . 3 12 . . . Catastrophic 2 | . . 2 . . . Database Lockouts . | . . . . . . Manual 28 | . 5 22 . 1 . Terminals 26 | . 5 21 . . . Fabricators . | . . . . . . Repair Stations 6 | . . 6 . . . Recycling Units 1 | . . 1 . . . Scanalyzers . | . . . . . . Garrison Access . | . . . . . . Terminal Hacks 8 | . 2 4 2 . . Robot Analysis 4 | . 2 2 . . . Open Door 2 | . . . 2 . . Alert Level 1 | . . 1 . . . Unreport Threat 1 | . . 1 . . . Fabricator Hacks . | . . . . . . Repair Station Hacks 6 | . . 6 . . . Scan Component 3 | . . 3 . . . Repair 3 | . . 3 . . . Recycling Unit Hacks 1 | . . 1 . . . Retrieve Components 1 | . . 1 . . . Scanalyzer . | . . . . . . Garrison Access Hacks . | . . . . . . Unauthorized Hacks 5 | . . 5 . . . Terminals 5 | . . 5 . . . Assimilate 2 | . . 2 . . . Botnet 2 | . . 2 . . . Operators 1 | . . 1 . . . Fabricators . | . . . . . . Repair Stations . | . . . . . . Recycling Units . | . . . . . . Scanalyzers . | . . . . . . Garrison Access . | . . . . . . Data Cores Recovered . | . . . . . . Used . | . . . . . . Hacking Detections 8 | . 1 7 . . . Full Trace Events . | . . . . . . Feedback Events . | . . . . . . Feedback Blocked . | . . . . . . Robot Schematics Acquired . | . . . . . . Robots Built . | . . . . . . Authchips . | . . . . . . Time . | . . . . . . Total Robot Build Rating . | . . . . . . Part Schematics Acquired . | . . . . . . Parts Built . | . . . . . . Authchips . | . . . . . . Time . | . . . . . . Total Part Build Rating . | . . . . . . Parts Repaired 3 | . . 3 . . . Time 96 | . . 96 . . . Parts Recycled . | . . . . . . Recycled Matter . | . . . . . . Retrieved Matter . | . . . . . . Retrieved Components 9 | . . 9 . . . Parts Scanalyzed . | . . . . . . Part Schematics Acquired . | . . . . . . Parts Damaged . | . . . . . . Bothacking | -11 -10 -9 -9 -9 -8 ------------ Run | Yrd Mat Mat Min Exi Min Used RIF Installer . | . . . . . . Robots Hacked . | . . . . . . Non-combat . | . . . . . . Combat . | . . . . . . Robot Hacks Applied . | . . . . . . Relay Couplers Released . | . . . . . . Fabnet Peak Effective % . | . . . . . . Robots Rewired . | . . . . . . Allies Hacked . | . . . . . . Hacks Repelled . | . . . . . . Allies | -11 -10 -9 -9 -9 -8 -------- Run | Yrd Mat Mat Min Exi Min Total Allies 5 | . . 1 4 . . Largest Group 5 | . . 1 5 2 1 Highest-Rated Group 81 | . . 10 81 26 10 Highest-Rated Ally 31 | . . 10 31 16 10 Total Orders 4 | . . . 4 . . STAY 2 | . . . 2 . . FOLLOW 2 | . . . 2 . . Ally Attacks 14 | . . . 14 . . Total Damage 238 | . . . 238 . . Kills 5 | . . . 5 . . Allies Corrupted . | . . . . . . Allies Melted . | . . . . . . Intel | -11 -10 -9 -9 -9 -8 ------- Run | Yrd Mat Mat Min Exi Min Robot Analysis Total 4 | . 2 2 . . . Derelict Logs Recovered 1 | . . . 1 . . Drone Launches . | . . . . . . Drone Recoveries . | . . . . . . Exploration | -11 -10 -9 -9 -9 -8 ------------- Run | Yrd Mat Mat Min Exi Min Turns Passed 3334 | 33 137 2184 470 225 285 Spaces Moved 2335 | 34 155 1383 361 208 194 Core 4 | 4 . . . . . Treads 102 | . . 102 . . . Legs 292 | . . . . 98 194 Wheels 1937 | 30 155 1281 361 110 . Hover . | . . . . . . Flight . | . . . . . . Fastest Speed 50 | 50 80 95 105 90 90 Average Speed 106 | 76 83 113 105 98 90 Slowest Speed 240 | 80 95 240 105 170 90 Overloaded Moves . | . . . . . . Propulsion Burnouts . | . . . . . . Robots Hopped . | . . . . . . Cave-ins Triggered . | . . . . . . Exploration Rate (%) 49 | 3 28 87 67 60 52 Regions Visited 5 Branch Regions 3 Pre-discovered Areas 1 | . . . 1 . . Known Exits Taken . | . . . . . . Unknown Exits Taken 5 | 1 1 1 1 1 . Scrap Searched 1 | . . . 1 . . Spaces Dug 11 | . . 3 . . 8 Terrain Destroyed 25 | . . 10 7 . 8 Melee . | . . . . . . Projectile . | . . . . . . AOE 25 | . . 10 7 . 8 Terrain Rammed . | . . . . . . Walls Destroyed . | . . . . . . Machines Disabled . | . . . . . . Actions | -11 -10 -9 -9 -9 -8 --------- Run | Yrd Mat Mat Min Exi Min Total 2921 | 39 160 1815 430 226 251 Wait 321 | . . 252 41 13 15 Move 2330 | 33 154 1382 360 207 194 Hop . | . . . . . . Pick Up 23 | 3 2 16 2 . . Fast Attach 24 | 3 4 14 1 2 . Attach 4 | . . 1 . . 3 Detach 2 | . . 2 . . . Swap 31 | . . 19 7 1 4 Drop 29 | . . 24 3 2 . Fire 26 | . . 11 11 . 4 Melee 131 | . . 94 5 1 31 Ram . | . . . . . . Kick . | . . . . . . Crush . | . . . . . . Escape Stasis . | . . . . . . Rewire . | . . . . . . Trap . | . . . . . . Miscellaneous . | . . . . . . Route ------- -11/Scrapyard -10/Materials -9/Materials (discovered 6 exits: [*Mat x3] / *Min / [*Sto x2]) -9/Mines -9/Exiles -8/Mines (discovered 1 exit: [*Mat]) History --------- Turn | Location | Event 8 | -11/Scrapyard | Discovered new exit (range 15) 34 | -11/Scrapyard | Entered Materials 159 | -10/Materials | Discovered new exit (range 14) 171 | -10/Materials | Entered another Materials area 171 | -9/Materials | Evolved 2 slots: Propulsion x1, Weapon x1 311 | -9/Materials | Build established: Mutant 936 | -9/Materials | Discovered new exit (range 7) 1214 | -9/Materials | Core integrity fell below 50% 1334 | -9/Materials | Discovered new exit (range 10) 1408 | -9/Materials | Repaired Med. Armor Plating 1441 | -9/Materials | Repaired Arm. Wheel 1451 | -9/Materials | Discovered new exit (range 11) 1650 | -9/Materials | Discovered new exit (range 4) 1880 | -9/Materials | Discovered new exit (range 16) 2181 | -9/Materials | Discovered new exit (range 16) 2344 | -9/Materials | Repaired Arm. Wheel 2355 | -9/Materials | Entered Mines 2355 | -9/Mines | Accompanied by 1 ally 2358 | -9/Mines | Received a Mining Laser from a helpful Derelict 2438 | -9/Mines | Learned location of Storage (-9) 2471 | -9/Mines | Assisted by bots powering up and referring to "LRC-V3" 2500 | -9/Mines | Met a Derelict who couldn't figure out how to use a Trap Extractor 2668 | -9/Mines | Met a Derelict shopkeep closing up shop 2785 | -9/Mines | Deemed a non-threat by the Exiles lab entrance 2785 | -9/Mines | Discovered new exit (range 5) 2825 | -9/Mines | Entered Exiles 2825 | -9/Exiles | Accompanied by 2 allies 2851 | -9/Exiles | Met 8R-AWN 2870 | -9/Exiles | Met EX-HEX 2898 | -9/Exiles | Met EX-BIN 2911 | -9/Exiles | Aligned with FarCom system 2912 | -9/Exiles | Given EX-Vault access code 2936 | -9/Exiles | Opened EX-Vault 2942 | -9/Exiles | Found Prototype Leg 2942 | -9/Exiles | Identified Potential Leg 2945 | -9/Exiles | Found Potential Leg 2967 | -9/Exiles | Warned to stay clear of 0b10 Research branches 2980 | -9/Exiles | Exiles lab attacked by MAIN.C 3027 | -9/Exiles | Discovered new exit (range 10) 3048 | -9/Exiles | Attacked by the Exiles 3050 | -9/Exiles | Left Exiles lab with Potential Leg 3050 | -9/Exiles | Entered Mines 3050 | -8/Mines | Accompanied by 1 ally 3139 | -8/Mines | Destroyed 7 combat bots 3175 | -8/Mines | Core integrity fell below 20% 3301 | -8/Mines | Discovered new exit (range 9) 3335 | -8/Mines | Destroyed by G-50 Soldier with Heavy Laser Last Messages --------------- H-55 Commando suffers critical hit (Smash). H-55 Commando destroyed. Acquired 25 matter. T-07 Excavator is excavating. U-05 Engineer lays Concrete. U-05 Engineer builds a Wall. T-07 Excavator is excavating. EXIT=FOUND T-07 Excavator destroyed. G-47 Trooper knocked back. Flail follow-up attack on G-50 Soldier. Imp. Ion Engine destroyed. G-47 Trooper suffers critical hit (Smash). Destroyed Particle Gun. Destroyed Imp. Heat Sink. G-47 Trooper system corrupted by crushing effect. G-47 Trooper system terminally corrupted. Lgt. Nuclear Core fried. Med. Armor Plating destroyed. Map ----- +----------------------------------------------------+ | | | | | | | | | | | | | | | | | | | | | | | | | ?????????????????????????????????????????????????? | | ????????????????????###??????????????????????????? | | ???????????????????## #?????????????????????????? | | ???????????????????# ##???????????????????????? | | ???????????????????# ##??????????????????????? | | ??????????????????## #??????????????????????? | | ?????????????????## < #??????????????????????? | | ????????????????## ##?????????????????????? | | ????? ??????????# #?????????????????????? | | ????? ??????????# #?????????????????????? | | ????? #??????????# #?????????????????????? | | ????? #???????????? g #?????????????????????? | | ????? #??????????????# ##????????????????????? | | ????? #???????????????# @ ###### #?????????????? | | ????? #??????????###### % #????????????? | | ??### #??????????# =!| g #????????????? | | ?##]! ###????????# !%* #????????????? | | ?# ##???????# ###### ##????????????? | | ?# ! #???????# #????# ## ##?????????????? | | ?# = #????##### #????# #?## ##??????????????? | | ?# ]#?????# #????# #??? #???????????????? | | ??# #?????# #####????# #???? ??????????????? | | ??# !#?????# #????????? ????? ?????????????? | | ??## ##?????# #????????? ?????? $????????????? | | ???# ##??????# #????????? ??????? ????????????? | | ???# #???????# #????????? ????????????????????? | | ???# #???????# #????????? ????????????????????? | | ???# #??????## ##???????? ????????????????????? | | ???# #?????## ####????? ????????????????????? | | ???# #?????# ####??????????????????????????? | | ???# ####### """ #???????????????????????? | | ???# """ #### #???????????????????????? | | ???# """ #????????????????????????????? | | ???######## ##????????????????????????????? | | ?????????# ##?????????????????????????????? | | ?????????# ##?????????????????????????????? | | ?????????## ##????????????????????????????? | | ????# ##### #????????????????????????????? | +----------------------------------------------------+ Best States ------------- Heat Dissipation 28 Energy Generation 10 Energy Capacity 265 Matter Stores 300 Matter Capacity 300 Sight Range 16 Terrain Scan Density 10 Armor Coverage 225 Evasion (%) 57 Targeting Accuracy 5 Recoil Reduction 1 Item Schematics ----------------- None Robot Schematics ------------------ None Fabricated ------------ Nothing Alien Tech Used ----------------- None Achievements -------------- None Challenges ------------ None Game ------ Seed GottaGoFast Manual? 1 Play Time 00:28:46 Cumulative 281.8 hours Start 2024.07.10 @ 21:51:19 End 2024.07.10 @ 22:23:56 Sessions 1 Manual Loads 0 Difficulty Rogue Special Mode None Game No. 228 Rogue 228 Adventurer 0 Explorer 0 Win Type - Total 23 Types 17/1/2/1/1/0/0/1/0 Lore% 77 Gallery% 86 Achievement% 89 Wizard Run 0 Options --------- Layout 1 ASCII 0 Keyboard 0 Movement Numpad Keybinds 0 Fullscreen 1 Font 24/Smallcaps Map View 50x35 Zoom Use 0% Tactical HUD 1 Map Filters NONE Filters NONE Steam 1 RUN: 712d442c-7b71-4fec-9ead-6defac32b397